fUST/lending_fUST_20250610
["ID","MTS","AMOUNT","RATE_DAILY","PERIOD"]
[365158113,1749503441365,-600.0,0.00023973,2]
[365158114,1749503441375,-500.0,0.00023973,2]
[365158115,1749503441386,-557.78340041,0.00023973,2]
[365158116,1749503441397,-500.0,0.00023973,2]
[365158117,1749503441407,-500.0,0.00023973,2]
[365158118,1749503441417,-503.22268146,0.00023973,2]
[365158119,1749503441426,-503.13665459,0.00023973,2]
[365158120,1749503441436,-500.0,0.00023973,2]
[365158121,1749503441446,-500.0,0.00023973,2]
[365158122,1749503441456,-1560.568451,0.00023999,2]
[365158123,1749503441465,-474611.29665693,0.00024,2]
[365158144,1749503446015,-430.0,0.00021367,4]
[365158145,1749503446026,-430.0,0.00021367,4]
[365158146,1749503446036,-460.0,0.00021368,4]
[365158147,1749503446046,-315.40391992,0.00021642,4]
[365158148,1749503446058,-144.59608008,0.00021642,4]
[365158149,1749503446069,-1224.65490426,0.000219,6]
[365158150,1749503446079,-460.0,0.00021916,4]
[365158151,1749503446089,-1224.65490417,0.00022003,6]
[365158152,1749503446098,-1224.65490417,0.00022107,6]
[365158153,1749503446108,-460.0,0.0002219,4]
[365158154,1749503446117,-460.0,0.00022464,4]
[365158155,1749503446127,-460.0,0.00022738,4]
[365158156,1749503446137,-460.0,0.00023012,4]
[365158157,1749503446146,-460.0,0.00023286,4]
[365158158,1749503446156,-525.88389815,0.0002356,4]
[365158159,1749503446166,-264776.43466969,0.00024,2]
[365158190,1749504407734,166.12604,0.00013699,2]
[365158200,1749504521153,2421.068039,0.0002,120]
[365158258,1749504632393,-150.0,0.000189,2]
[365158259,1749504632402,-254.547694,0.00020346,2]
[365158260,1749504632412,-159.0,0.00020365,2]
[365158261,1749504632421,-300.0,0.00020365,2]
[365158263,1749504632434,-300.0,0.00020365,2]
[365158264,1749504632452,-300.0,0.00020365,2]
[365158265,1749504632461,-535.0,0.00020365,2]
[365158266,1749504632471,-644.7222547,0.00020365,2]
[365158267,1749504632480,-16836.242027,0.00020366,2]
[365158268,1749504632490,-320.59813726,0.00021362,4]
[365158270,1749504632499,-850.84,0.00021363,4]
[365158272,1749504632508,-6352.02,0.00021363,4]
[365158274,1749504632518,-1045.99,0.00021363,4]
[365158275,1749504632527,-985.59,0.00021363,4]
[365158277,1749504632537,-500.0,0.00021363,2]
[365158279,1749504632553,-500.0,0.00021363,2]
[365158281,1749504632563,-500.0,0.00021363,2]
[365158284,1749504632573,-369.01325667,0.00021363,2]
[365158285,1749504632582,-500.0,0.00021363,2]
[365158287,1749504632591,-500.0,0.00021363,2]
[365158290,1749504632601,-1.76438215,0.00021363,2]
[365158358,1749504638195,-460.0,0.00021363,4]
[365158359,1749504638205,-164.72110049,0.00021363,2]
[365158360,1749504638362,-333.51451736,0.00021363,2]
[365158362,1749504638372,-500.0,0.00021363,2]
[365158364,1749504638382,-412.9794404,0.00021363,2]
[365158366,1749504638393,-516.21225328,0.00021363,2]
[365158368,1749504638403,-500.0,0.00021363,2]
[365158370,1749504638412,-500.0,0.00021363,2]
[365158371,1749504638422,-500.0,0.00021363,2]
[365158372,1749504638432,-500.0,0.00021363,2]
[365158373,1749504638442,-500.0,0.00021363,2]
[365158374,1749504638452,-500.0,0.00021363,2]
[365158375,1749504638462,-500.0,0.00021363,2]
[365158376,1749504638471,-500.0,0.00021363,2]
[365158377,1749504638482,-500.0,0.00021363,2]
[365158378,1749504638492,-500.0,0.00021363,2]
[365158380,1749504638501,-500.0,0.00021363,2]
[365158382,1749504638510,-384.48820928,0.00021363,2]
[365158384,1749504638520,-204.2664824,0.00021363,2]
[365158386,1749504638529,-500.0,0.00021363,2]
[365158387,1749504638539,-500.0,0.00021363,2]
[365158389,1749504638550,-500.0,0.00021363,2]
[365158390,1749504638560,-500.0,0.00021363,2]
[365158392,1749504638570,-500.0,0.00021363,2]
[365158393,1749504638579,-500.0,0.00021363,2]
[365158394,1749504638589,-500.0,0.00021363,2]
[365158395,1749504638599,-500.0,0.00021363,2]
[365158396,1749504638609,-500.0,0.00021363,2]
[365158397,1749504638619,-500.0,0.00021363,2]
[365158398,1749504638630,-500.0,0.00021363,2]
[365158399,1749504638640,-500.0,0.00021363,2]
[365158400,1749504638650,-584.64697304,0.00021363,2]
[365158401,1749504638661,-500.0,0.00021363,2]
[365158402,1749504638671,-500.0,0.00021363,2]
[365158403,1749504638681,-500.0,0.00021363,2]
[365158404,1749504638691,-643.23379668,0.00021363,2]
[365158405,1749504638701,-460.0,0.00021364,4]
[365158406,1749504638714,-420.0,0.00021364,4]
[365158407,1749504638724,-1104.64,0.00021364,4]
[365158408,1749504638734,-927.45,0.00021364,4]
[365158409,1749504638744,-966.26,0.00021364,4]
[365158410,1749504638755,-460.0,0.00021364,4]
[365158411,1749504638764,-501.74828482,0.00021364,4]
[365158412,1749504638774,-289.79,0.00021364,4]
[365158413,1749504638784,-440.0,0.00021364,4]
[365158414,1749504638794,-430.0,0.00021364,4]
[365158415,1749504638804,-192.77119048,0.00021364,4]
[365158416,1749504638813,-460.0,0.00021364,4]
[365158417,1749504638823,-430.0,0.00021364,4]
[365158418,1749504638832,-440.0,0.00021364,4]
[365158419,1749504638842,-440.0,0.00021364,4]
[365158420,1749504638852,-430.0,0.00021364,4]
[365158421,1749504638861,-440.0,0.00021364,4]
[365158422,1749504638871,-440.0,0.00021364,4]
[365158423,1749504638881,-440.0,0.00021364,4]
[365158424,1749504638890,-460.0,0.00021364,4]
[365158425,1749504638900,-460.0,0.00021364,4]
[365158426,1749504638911,-460.0,0.00021364,4]
[365158427,1749504638920,-440.0,0.00021364,4]
[365158428,1749504638930,-460.0,0.00021364,4]
[365158429,1749504638941,-500.0,0.00021364,4]
[365158430,1749504638951,-327.57100488,0.00021365,13]
[365158431,1749504638961,-440.0,0.00021365,4]
[365158432,1749504638971,-440.0,0.00021365,4]
[365158433,1749504638980,-460.0,0.00021365,4]
[365158434,1749504638991,-440.0,0.00021365,4]
[365158435,1749504639002,-460.0,0.00021365,4]
[365158436,1749504639013,-430.0,0.00021365,4]
[365158437,1749504639023,-462.51408139,0.00021365,4]
[365158438,1749504639033,-460.0,0.00021365,4]
[365158439,1749504639043,-460.0,0.00021365,4]
[365158440,1749504639054,-460.0,0.00021366,4]
[365158441,1749504639064,-440.0,0.00021366,4]
[365158442,1749504639074,-440.0,0.00021366,4]
[365158443,1749504639083,-460.0,0.00021366,4]
[365158444,1749504639093,-430.0,0.00021366,4]
[365158445,1749504639103,-440.0,0.00021366,4]
[365158446,1749504639113,-440.0,0.00021366,4]
[365158447,1749504639123,-440.0,0.00021366,4]
[365158448,1749504639132,-440.0,0.00021366,4]
[365158449,1749504639142,-440.0,0.00021366,4]
[365158450,1749504639151,-440.0,0.00021366,4]
[365158451,1749504639161,-430.0,0.00021366,4]
[365158452,1749504639173,-195.83381847,0.00021366,4]
[365158453,1749504639183,-440.0,0.00021366,4]
[365158454,1749504639193,-460.0,0.00021366,4]
[365158455,1749504639203,-430.0,0.00021366,4]
[365158456,1749504639213,-440.0,0.00021366,4]
[365158457,1749504639224,-476.38897664,0.00021366,4]
[365158458,1749504639234,-440.0,0.00021366,4]
[365158459,1749504639244,-168.337,0.00021366,2]
[365158460,1749504639253,-400.0,0.00021366,4]
[365158461,1749504639263,-430.0,0.00021366,4]
[365158462,1749504639272,-430.0,0.00021366,4]
[365158463,1749504639282,-430.0,0.00021366,4]
[365158464,1749504639292,-430.0,0.00021366,4]
[365158465,1749504639306,-430.0,0.00021366,4]
[365158466,1749504639316,-433.07761456,0.00021366,4]
[365158467,1749504639326,-430.0,0.00021366,4]
[365158468,1749504639335,-430.0,0.00021366,4]
[365158469,1749504639345,-430.0,0.00021366,4]
[365158470,1749504639355,-440.0,0.00021366,4]
[365158471,1749504639365,-440.0,0.00021366,4]
[365158472,1749504639375,-440.0,0.00021366,4]
[365158473,1749504639385,-460.0,0.00021366,4]
[365158474,1749504639395,-587.8728,0.00021366,4]
[365158475,1749504639405,-370.0,0.00021366,4]
[365158476,1749504639415,-420.0,0.00021366,4]
[365158477,1749504639425,-460.0,0.00021366,4]
[365158478,1749504639435,-460.0,0.00021366,4]
[365158479,1749504639444,-423.91614142,0.00021366,4]
[365158480,1749504639454,-420.0,0.00021366,4]
[365158481,1749504639464,-410.0,0.00021366,4]
[365158482,1749504639474,-440.0,0.00021366,4]
[365158483,1749504639484,-460.0,0.00021366,4]
[365158484,1749504639494,-440.0,0.00021366,4]
[365158485,1749504639504,-460.0,0.00021366,4]
[365158486,1749504639514,-460.0,0.00021366,4]
[365158487,1749504639524,-460.0,0.00021366,4]
[365158489,1749504639535,-460.0,0.00021366,4]
[365158491,1749504639545,-400.0,0.00021366,4]
[365158492,1749504639556,-400.0,0.00021366,4]
[365158493,1749504639566,-440.0,0.00021366,4]
[365158494,1749504639576,-189.16615433,0.00021366,2]
[365158495,1749504639586,-430.0,0.00021366,4]
[365158496,1749504639595,-430.0,0.00021366,4]
[365158497,1749504639606,-460.0,0.00021366,4]
[365158498,1749504639615,-460.0,0.00021366,4]
[365158499,1749504639626,-430.0,0.00021366,4]
[365158500,1749504639635,-430.0,0.00021366,4]
[365158501,1749504639645,-440.0,0.00021366,4]
[365158502,1749504639655,-460.0,0.00021366,4]
[365158505,1749504639665,-500.0,0.00021366,4]
[365158506,1749504639675,-430.0,0.00021366,4]
[365158507,1749504639685,-430.0,0.00021366,4]
[365158508,1749504639696,-440.0,0.00021366,4]
[365158509,1749504639707,-440.0,0.00021366,4]
[365158510,1749504639716,-430.0,0.00021366,4]
[365158511,1749504639726,-430.0,0.00021366,4]
[365158512,1749504639736,-410.0,0.00021366,4]
[365158513,1749504639746,-433.88538816,0.00021366,4]
[365158514,1749504639756,-440.0,0.00021366,4]
[365158515,1749504639766,-440.0,0.00021366,4]
[365158516,1749504639776,-440.0,0.00021366,4]
[365158517,1749504639786,-420.0,0.00021366,4]
[365158518,1749504639799,-430.0,0.00021366,4]
[365158519,1749504639809,-440.0,0.00021366,4]
[365158520,1749504639819,-422.67270731,0.00021366,4]
[365158521,1749504639828,-430.0,0.00021366,4]
[365158522,1749504639838,-460.0,0.00021366,4]
[365158523,1749504639849,-350.0,0.00021366,4]
[365158524,1749504639859,-396.60074128,0.00021366,4]
[365158525,1749504639871,-460.0,0.00021366,4]
[365158526,1749504639881,-460.0,0.00021366,4]
[365158527,1749504639892,-460.0,0.00021366,4]
[365158528,1749504639903,-460.0,0.00021366,4]
[365158529,1749504639913,-460.0,0.00021366,4]
[365158530,1749504639923,-460.0,0.00021366,4]
[365158531,1749504639933,-582.89,0.00021366,4]
[365158532,1749504639944,-430.0,0.00021366,4]
[365158533,1749504639954,-1008.65,0.00021366,4]
[365158534,1749504639965,-1440.18,0.00021366,4]
[365158535,1749504639976,-414.81838807,0.00021366,4]
[365158536,1749504639989,-460.0,0.00021366,4]
[365158537,1749504640002,-223.71778218,0.00021367,4]
[365158539,1749504640015,-426.30165298,0.00021367,4]
[365158540,1749504640027,-431.1523617,0.00021367,4]
[365158541,1749504640040,-460.0,0.00021367,4]
[365158542,1749504640073,-460.0,0.00021367,4]
[365158544,1749504640083,-460.0,0.00021367,2]
[365158546,1749504640094,-460.0,0.00021367,4]
[365158548,1749504640104,-460.0,0.00021367,4]
[365158550,1749504640114,-460.0,0.00021367,4]
[365158552,1749504640124,-460.0,0.00021367,4]
[365158554,1749504640134,-430.0,0.00021367,4]
[365158556,1749504640144,-797.97,0.00021434,2]
[365158558,1749504640154,-850.84,0.00021637,4]
[365158560,1749504640165,-6352.02,0.00021637,4]
[365158561,1749504640175,-1045.99,0.00021637,4]
[365158562,1749504640186,-985.59,0.00021637,4]
[365158563,1749504640197,-440.0,0.00021637,4]
[365158564,1749504640207,-1104.64,0.00021638,4]
[365158565,1749504640217,-927.45,0.00021638,4]
[365158566,1749504640228,-966.26,0.00021638,4]
[365158567,1749504640238,-460.0,0.00021638,4]
[365158568,1749504640248,-460.0,0.00021638,4]
[365158569,1749504640258,-460.0,0.00021638,4]
[365158570,1749504640268,-460.0,0.00021638,4]
[365158571,1749504640279,-460.0,0.00021638,4]
[365158572,1749504640289,-460.0,0.00021638,4]
[365158573,1749504640305,-460.0,0.00021639,4]
[365158575,1749504640315,-460.0,0.00021639,4]
[365158576,1749504640325,-460.0,0.00021639,4]
[365158577,1749504640334,-380.0,0.0002164,4]
[365158578,1749504640344,-260.0,0.0002164,4]
[365158579,1749504640354,-330.0,0.0002164,4]
[365158580,1749504640365,-440.0,0.0002164,4]
[365158582,1749504640375,-460.0,0.0002164,4]
[365158584,1749504640385,-412.57,0.0002164,4]
[365158586,1749504640395,-430.0,0.0002164,4]
[365158588,1749504640406,-500.0,0.0002164,4]
[365158590,1749504640416,-460.0,0.0002164,4]
[365158592,1749504640426,-460.0,0.0002164,4]
[365158593,1749504640436,-460.0,0.0002164,4]
[365158594,1749504640445,-460.0,0.0002164,4]
[365158595,1749504640455,-582.89,0.0002164,4]
[365158596,1749504640465,-1008.65,0.0002164,4]
[365158597,1749504640475,-1440.18,0.0002164,4]
[365158598,1749504640485,-460.0,0.0002164,4]
[365158599,1749504640495,-460.0,0.00021641,4]
[365158600,1749504640507,-460.0,0.00021641,4]
[365158601,1749504640518,-500.0,0.00021658,2]
[365158602,1749504640528,-11856.04170836,0.00021856,2]
[365158603,1749504640538,-2365.95808935,0.000219,2]
[365158604,1749504640550,-539.94,0.00021906,3]
[365158605,1749504640560,-850.84,0.00021911,4]
[365158606,1749504640570,-6352.02,0.00021911,4]
[365158607,1749504640686,-1045.99,0.00021911,4]
[365158608,1749504640697,-985.59,0.00021911,4]
[365158609,1749504640708,-1104.64,0.00021912,4]
[365158610,1749504640718,-927.45,0.00021912,4]
[365158611,1749504640729,-966.26,0.00021912,4]
[365158612,1749504640738,-460.0,0.00021912,4]
[365158613,1749504640748,-460.0,0.00021912,4]
[365158614,1749504640758,-460.0,0.00021912,4]
[365158615,1749504640768,-460.0,0.00021912,4]
[365158616,1749504640778,-460.0,0.00021912,4]
[365158617,1749504640788,-460.0,0.00021912,4]
[365158618,1749504640800,-460.0,0.00021913,4]
[365158619,1749504640809,-460.0,0.00021913,4]
[365158620,1749504640819,-460.0,0.00021913,4]
[365158621,1749504640829,-460.0,0.00021914,4]
[365158622,1749504640838,-460.0,0.00021914,4]
[365158623,1749504640848,-460.0,0.00021914,4]
[365158624,1749504640858,-460.0,0.00021914,4]
[365158625,1749504640868,-460.0,0.00021914,4]
[365158626,1749504640878,-582.89,0.00021914,4]
[365158627,1749504640887,-1008.65,0.00021914,4]
[365158628,1749504640898,-1440.18,0.00021914,4]
[365158629,1749504640908,-460.0,0.00021914,4]
[365158630,1749504640918,-500.0,0.00021915,4]
[365158631,1749504640927,-460.0,0.00021915,4]
[365158632,1749504640937,-500.0,0.00021917,4]
[365158633,1749504640947,-500.0,0.00021917,4]
[365158634,1749504640956,-500.0,0.00021917,4]
[365158635,1749504640967,-324.5812335,0.00021918,7]
[365158636,1749504640977,-842.5625,0.00021923,2]
[365158637,1749504640986,-834.7738823,0.00021923,2]
[365158638,1749504640997,-229.64266968,0.00021923,2]
[365158639,1749504641008,-160.0,0.00021923,2]
[365158640,1749504641019,-424.05420114,0.00021923,2]
[365158641,1749504641029,-16000.0,0.00021987,2]
[365158642,1749504641039,-4087.08887474,0.00021987,2]
[365158643,1749504641050,-161.0,0.00022,2]
[365158644,1749504641060,-57463.05665493,0.00022,2]
[365158645,1749504641070,-44235.26098809,0.00022,2]
[365158646,1749504641080,-160.76859129,0.00022,2]
[365158647,1749504641089,-214.0,0.00022167,2]
[365158648,1749504641099,-850.84,0.00022185,4]
[365158649,1749504641109,-6352.02,0.00022185,4]
[365158650,1749504641118,-1045.99,0.00022185,4]
[365158651,1749504641128,-985.59,0.00022185,4]
[365158652,1749504641137,-1104.64,0.00022186,4]
[365158653,1749504641147,-927.45,0.00022186,4]
[365158654,1749504641157,-966.26,0.00022186,4]
[365158655,1749504641166,-460.0,0.00022186,4]
[365158656,1749504641176,-460.0,0.00022186,4]
[365158657,1749504641186,-460.0,0.00022186,4]
[365158658,1749504641195,-460.0,0.00022186,4]
[365158659,1749504641205,-460.0,0.00022187,4]
[365158660,1749504641214,-460.0,0.00022187,4]
[365158661,1749504641225,-460.0,0.00022187,4]
[365158662,1749504641234,-460.0,0.00022188,4]
[365158664,1749504641244,-460.0,0.00022188,4]
[365158665,1749504641254,-460.0,0.00022188,4]
[365158666,1749504641263,-460.0,0.00022188,4]
[365158667,1749504641274,-460.0,0.00022188,4]
[365158668,1749504641284,-582.89,0.00022188,4]
[365158669,1749504641294,-1008.65,0.00022188,4]
[365158670,1749504641307,-1440.18,0.00022188,4]
[365158671,1749504641317,-460.0,0.00022188,4]
[365158672,1749504641327,-460.0,0.00022189,4]
[365158673,1749504641337,-1000.0,0.00022206,2]
[365158674,1749504641346,-2365.95808934,0.000224,2]
[365158675,1749504641356,-850.84,0.00022459,4]
[365158676,1749504641366,-6352.02,0.00022459,4]
[365158677,1749504641376,-1045.99,0.00022459,4]
[365158678,1749504641386,-985.59,0.00022459,4]
[365158679,1749504641395,-1104.64,0.0002246,4]
[365158680,1749504641406,-927.45,0.0002246,4]
[365158681,1749504641416,-966.26,0.0002246,4]
[365158682,1749504641426,-460.0,0.0002246,4]
[365158683,1749504641436,-460.0,0.0002246,4]
[365158684,1749504641445,-249.07079546,0.0002246,4]
[365158685,1749504641456,-460.0,0.0002246,4]
[365158686,1749504641466,-460.0,0.00022461,4]
[365158687,1749504641477,-479.0956858,0.00022462,4]
[365158688,1749504641486,-460.0,0.00022462,4]
[365158689,1749504641496,-460.0,0.00022462,4]
[365158690,1749504641506,-460.0,0.00022462,4]
[365158691,1749504641517,-460.0,0.00022462,4]
[365158692,1749504641527,-582.89,0.00022462,4]
[365158693,1749504641537,-1008.65,0.00022462,4]
[365158694,1749504641547,-1440.18,0.00022462,4]
[365158695,1749504641559,-460.0,0.00022462,4]
[365158696,1749504641568,-460.0,0.00022463,4]
[365158697,1749504641578,-864.31,0.000225,7]
[365158698,1749504641588,-16000.0,0.00022535,2]
[365158699,1749504641597,-207.4,0.00022639,2]
[365158700,1749504641607,-4603.657962,0.000227,2]
[365158701,1749504641616,-850.84,0.00022733,4]
[365158702,1749504641626,-6352.02,0.00022733,4]
[365158703,1749504641636,-1045.99,0.00022733,4]
[365158704,1749504641646,-985.59,0.00022733,4]
[365158705,1749504641656,-1104.64,0.00022734,4]
[365158706,1749504641666,-927.45,0.00022734,4]
[365158707,1749504641676,-966.26,0.00022734,4]
[365158708,1749504641686,-460.0,0.00022734,4]
[365158709,1749504641695,-460.0,0.00022734,4]
[365158710,1749504641705,-460.0,0.00022734,4]
[365158711,1749504641715,-440.0,0.00022735,4]
[365158712,1749504641725,-460.0,0.00022736,4]
[365158713,1749504641736,-460.0,0.00022736,4]
[365158714,1749504641746,-460.0,0.00022736,4]
[365158715,1749504641756,-460.0,0.00022736,4]
[365158716,1749504641767,-582.89,0.00022736,4]
[365158717,1749504641776,-1008.65,0.00022736,4]
[365158718,1749504641786,-1440.18,0.00022736,4]
[365158719,1749504641795,-392.92628066,0.00022736,4]
[365158720,1749504641809,-460.0,0.00022737,4]
[365158721,1749504641819,-188.43508344,0.00022849,2]
[365158722,1749504641829,-2365.95808934,0.000229,2]
[365158723,1749504641839,-160.05735225,0.00022925,2]
[365158724,1749504641849,-500.0,0.00022925,2]
[365158725,1749504641858,-328.87435379,0.00023,2]
[365158726,1749504641868,-850.84,0.00023007,4]
[365158727,1749504641883,-6352.02,0.00023007,4]
[365158728,1749504641897,-1045.99,0.00023007,4]
[365158729,1749504641913,-985.59,0.00023007,4]
[365158730,1749504641926,-1104.64,0.00023008,4]
[365158731,1749504641940,-927.45,0.00023008,4]
[365158732,1749504641951,-966.26,0.00023008,4]
[365158733,1749504641962,-460.0,0.00023008,4]
[365158734,1749504641976,-460.0,0.00023008,4]
[365158735,1749504641987,-460.0,0.00023008,4]
[365158736,1749504642001,-460.0,0.0002301,4]
[365158737,1749504642015,-460.0,0.0002301,4]
[365158738,1749504642028,-460.0,0.0002301,4]
[365158739,1749504642040,-460.0,0.0002301,4]
[365158740,1749504642056,-582.89,0.0002301,4]
[365158741,1749504642069,-1008.65,0.0002301,4]
[365158742,1749504642083,-1440.18,0.0002301,4]
[365158743,1749504642096,-460.0,0.00023011,4]
[365158744,1749504642108,-162.0,0.00023014,7]
[365158745,1749504642120,-188.43508344,0.00023151,2]
[365158746,1749504642133,-850.84,0.00023281,4]
[365158747,1749504642145,-6352.02,0.00023281,4]
[365158748,1749504642156,-1045.99,0.00023281,4]
[365158749,1749504642169,-985.59,0.00023281,4]
[365158750,1749504642182,-1104.64,0.00023282,4]
[365158751,1749504642196,-927.45,0.00023282,4]
[365158752,1749504642207,-966.26,0.00023282,4]
[365158753,1749504642219,-460.0,0.00023282,4]
[365158754,1749504642230,-460.0,0.00023282,4]
[365158755,1749504642241,-460.0,0.00023282,4]
[365158756,1749504642252,-460.0,0.00023284,4]
[365158757,1749504642264,-460.0,0.00023284,4]
[365158758,1749504642276,-460.0,0.00023284,4]
[365158759,1749504642288,-460.0,0.00023284,4]
[365158760,1749504642302,-582.89,0.00023284,4]
[365158761,1749504642315,-1008.65,0.00023284,4]
[365158762,1749504642327,-1440.18,0.00023284,4]
[365158763,1749504642340,-460.0,0.00023285,4]
[365158764,1749504642353,-500.0,0.00023286,2]
[365158765,1749504642368,-500.0,0.00023286,2]
[365158766,1749504642382,-500.0,0.00023286,2]
[365158767,1749504642394,-500.0,0.00023286,2]
[365158768,1749504642406,-500.0,0.00023286,2]
[365158769,1749504642416,-653.0,0.00023287,2]
[365158771,1749504642426,-2160.0,0.00023287,2]
[365158772,1749504642437,-405.0,0.00023287,2]
[365158773,1749504642448,-405.0,0.00023287,2]
[365158775,1749504642460,-963.0,0.00023287,2]
[365158776,1749504642474,-157.78072945,0.00023287,2]
[365158777,1749504642486,-1595.95,0.00023382,2]
[365158778,1749504642497,-2365.95808934,0.000234,2]
[365158779,1749504642507,-1968.51098828,0.00023456,2]
[365158780,1749504642519,-1000.0,0.00023473,2]
[365158781,1749504642530,-872.35041136,0.000235,2]
[365158783,1749504642542,-905.344167,0.0002352,3]
[365158785,1749504642556,-86634.22479,0.00023555,2]
[365158788,1749504642568,-850.84,0.00023555,4]
[365158791,1749504642578,-6352.02,0.00023555,4]
[365158793,1749504642588,-1045.99,0.00023555,4]
[365158797,1749504642599,-985.59,0.00023555,4]
[365158800,1749504642610,-1104.64,0.00023556,4]
[365158804,1749504642623,-927.45,0.00023556,4]
[365158807,1749504642635,-966.26,0.00023556,4]
[365158810,1749504642647,-460.0,0.00023556,4]
[365158814,1749504642658,-460.0,0.00023556,4]
[365158817,1749504642671,-460.0,0.00023556,4]
[365158819,1749504642683,-460.0,0.00023558,4]
[365158821,1749504642694,-460.0,0.00023558,4]
[365158825,1749504642706,-460.0,0.00023558,4]
[365158828,1749504642718,-460.0,0.00023558,4]
[365158833,1749504642730,-582.89,0.00023558,4]
[365158837,1749504642742,-1008.65,0.00023558,4]
[365158841,1749504642753,-1440.18,0.00023558,4]
[365158843,1749504642764,-460.0,0.00023559,4]
[365158846,1749504642776,-200.0,0.00023561,4]
[365158852,1749504642788,-150.61138,0.00023561,4]
[365158855,1749504642801,-364.646625,0.00023699,2]
[365158858,1749504642812,-6805.10550612,0.0002378,5]
[365158862,1749504642824,-3069.83577145,0.00023788,2]
[365158864,1749504642835,-800.0,0.00023797,2]
[365158866,1749504642847,-864.31,0.000238,7]
[365158867,1749504642858,-1957.0,0.000238,7]
[365158868,1749504642870,-11856.04170836,0.000238,7]
[365158869,1749504642882,-386.08028395,0.00023803,2]
[365158870,1749504642894,-2000.0,0.00023808,2]
[365158871,1749504642905,-2000.0,0.00023808,2]
[365158872,1749504642917,-2000.0,0.00023808,2]
[365158873,1749504642928,-2000.0,0.00023808,2]
[365158874,1749504642940,-2000.0,0.00023808,2]
[365158875,1749504642952,-2000.0,0.00023808,2]
[365158877,1749504642964,-2000.0,0.00023808,2]
[365158879,1749504642976,-2000.0,0.00023808,2]
[365158880,1749504642987,-2000.0,0.00023808,2]
[365158881,1749504642999,-2000.0,0.00023808,2]
[365158882,1749504643013,-2000.0,0.00023808,2]
[365158883,1749504643025,-2000.0,0.00023808,2]
[365158884,1749504643036,-437.03958727,0.00023808,2]
[365158885,1749504643048,-850.84,0.00023829,4]
[365158886,1749504643063,-6352.02,0.00023829,4]
[365158887,1749504643074,-1045.99,0.00023829,4]
[365158888,1749504643086,-985.59,0.00023829,4]
[365158889,1749504643097,-1104.64,0.0002383,4]
[365158890,1749504643109,-927.45,0.0002383,4]
[365158891,1749504643120,-966.26,0.0002383,4]
[365158892,1749504643132,-460.0,0.0002383,4]
[365158893,1749504643144,-460.0,0.0002383,4]
[365158894,1749504643156,-460.0,0.0002383,4]
[365158895,1749504643167,-460.0,0.00023832,4]
[365158897,1749504643177,-460.0,0.00023832,4]
[365158898,1749504643190,-460.0,0.00023832,4]
[365158899,1749504643201,-460.0,0.00023832,4]
[365158900,1749504643212,-582.89,0.00023832,4]
[365158901,1749504643223,-1008.65,0.00023832,4]
[365158902,1749504643235,-1440.18,0.00023832,4]
[365158903,1749504643246,-460.0,0.00023833,4]